[Event "Titled Tuesday Blitz June 13 Early 2023"]
[White "Parpiev, Isaak"]
[Black "Itkis, Boris"]
[WhiteFideId "34281576"]
[BlackFideId "1209167"]
[WhiteElo "2167"]
[BlackElo "2219"]
[Result "0-1"]
[Round "5"]
[TimeControl "180+2"]
[Date "2023.06.13"]
[WhiteClock "0:00:05"]
[BlackClock "0:00:16"]
[Board "122"]

1. Nf3 {[%clk 0:02:55]}  d5 {[%clk 0:02:59]} 2. b3 {[%clk 0:02:56]}  c5 {[%clk 0:02:58]} 3. e3 {[%clk 0:02:54]}  Nc6 {[%clk 0:02:58]} 4. Bb2 {[%clk 0:02:54]}  f6 {[%clk 0:02:58]} 5. d4 {[%clk 0:02:52]}  Bg4 {[%clk 0:02:57]} 6. Be2 {[%clk 0:02:46]}  cxd4 {[%clk 0:02:57]} 7. exd4 {[%clk 0:02:46]}  e6 {[%clk 0:02:57]} 8. O-O {[%clk 0:02:47]}  Bd6 {[%clk 0:02:58]} 9. h3 {[%clk 0:02:47]}  Bh5 {[%clk 0:02:57]} 10. c4 {[%clk 0:02:47]}  Nge7 {[%clk 0:02:57]} 11. a3 {[%clk 0:02:42]}  O-O {[%clk 0:02:55]} 12. c5 {[%clk 0:02:42]}  Bc7 {[%clk 0:02:55]} 13. b4 {[%clk 0:02:42]}  a6 {[%clk 0:02:52]} 14. Nbd2 {[%clk 0:02:28]}  e5 {[%clk 0:02:46]} 15. dxe5 {[%clk 0:02:27]}  fxe5 {[%clk 0:02:45]} 16. Ng5 {[%clk 0:02:25]}  Bxe2 {[%clk 0:02:36]} 17. Qxe2 {[%clk 0:02:26]}  Qd7 {[%clk 0:02:32]} 18. Qd3 {[%clk 0:01:35]}  Rf5 {[%clk 0:02:25]} 19. Nxh7 {[%clk 0:01:27]}  Rd8 {[%clk 0:01:32]} 20. g4 {[%clk 0:01:08]}  e4 {[%clk 0:01:32]} 21. Nxe4 {[%clk 0:00:43]}  dxe4 {[%clk 0:01:32]} 22. Qxd7 {[%clk 0:00:24]}  Rxd7 {[%clk 0:01:33]} 23. gxf5 {[%clk 0:00:25]}  Kxh7 {[%clk 0:01:32]} 24. Rad1 {[%clk 0:00:26]}  Nd5 {[%clk 0:01:25]} 25. Rfe1 {[%clk 0:00:21]}  Bd8 {[%clk 0:00:47]} 26. Rxe4 {[%clk 0:00:20]}  Bf6 {[%clk 0:00:47]} 27. Bxf6 {[%clk 0:00:17]}  gxf6 {[%clk 0:00:48]} 28. Re6 {[%clk 0:00:16]}  Kg7 {[%clk 0:00:37]} 29. Re2 {[%clk 0:00:13]}  Kf7 {[%clk 0:00:31]} 30. Red2 {[%clk 0:00:13]}  Nce7 {[%clk 0:00:30]} 31. Kf1 {[%clk 0:00:10]}  Rd8 {[%clk 0:00:30]} 32. a4 {[%clk 0:00:09]}  Ke8 {[%clk 0:00:19]} 33. b5 {[%clk 0:00:09]}  Rd7 {[%clk 0:00:19]} 34. bxa6 {[%clk 0:00:08]}  bxa6 {[%clk 0:00:20]} 35. Rd3 {[%clk 0:00:07]}  Kd8 {[%clk 0:00:19]} 36. h4 {[%clk 0:00:07]}  Kc7 {[%clk 0:00:19]} 37. h5 {[%clk 0:00:07]}  Kc6 {[%clk 0:00:20]} 38. h6 {[%clk 0:00:08]}  Rd8 {[%clk 0:00:20]} 39. h7 {[%clk 0:00:07]}  Rh8 {[%clk 0:00:21]} 40. Rh3 {[%clk 0:00:08]}  Nxf5 {[%clk 0:00:20]} 41. Rh5 {[%clk 0:00:08]}  Nfe7 {[%clk 0:00:18]} 42. Re1 {[%clk 0:00:07]}  f5 {[%clk 0:00:16]} 43. Re6+ {[%clk 0:00:07]}  Kxc5 {[%clk 0:00:16]} 44. Rxa6 {[%clk 0:00:06]}  Kd4 {[%clk 0:00:15]} 45. Kg2 {[%clk 0:00:06]}  Nf4+ {[%clk 0:00:15]} 46. Kf1 {[%clk 0:00:05]}  Nxh5 {[%clk 0:00:16]} 0-1


[Site "https://www.chess.com"]

[Event "Titled Tuesday Blitz June 13 Early 2023"]
[White "Torres Hernandez, Leslie Carolin"]
[Black "Liu, Casper"]
[WhiteFideId "8400504"]
[BlackFideId "1454153"]
[WhiteElo "1920"]
[BlackElo "2221"]
[Result "1-0"]
[Round "5"]
[TimeControl "180+2"]
[Date "2023.06.13"]
[WhiteClock "0:00:08"]
[BlackClock "0:02:12"]
[Board "123"]

1. e4 {[%clk 0:03:00]}  Nc6 {[%clk 0:02:52]} 2. Nf3 {[%clk 0:02:51]}  d6 {[%clk 0:02:52]} 3. Nc3 {[%clk 0:02:48]}  g6 {[%clk 0:02:51]} 4. d4 {[%clk 0:02:47]}  Bg7 {[%clk 0:02:51]} 5. Bc4 {[%clk 0:02:47]}  Bg4 {[%clk 0:02:52]} 6. Be3 {[%clk 0:02:46]}  e6 {[%clk 0:02:51]} 7. Qd2 {[%clk 0:02:46]}  a6 {[%clk 0:02:50]} 8. a3 {[%clk 0:02:44]}  Nf6 {[%clk 0:02:50]} 9. h3 {[%clk 0:02:43]}  Bxf3 {[%clk 0:02:49]} 10. gxf3 {[%clk 0:02:44]}  d5 {[%clk 0:02:47]} 11. Bb3 {[%clk 0:02:16]}  O-O {[%clk 0:02:45]} 12. e5 {[%clk 0:02:12]}  Nd7 {[%clk 0:02:41]} 13. f4 {[%clk 0:02:12]}  Ne7 {[%clk 0:02:41]} 14. Ne2 {[%clk 0:02:07]}  h5 {[%clk 0:02:41]} 15. c3 {[%clk 0:01:54]}  Rc8 {[%clk 0:02:41]} 16. Bc2 {[%clk 0:01:54]}  c5 {[%clk 0:02:41]} 17. Rg1 {[%clk 0:01:33]}  Qb6 {[%clk 0:02:39]} 18. Ba4 {[%clk 0:01:15]}  Qc7 {[%clk 0:02:30]} 19. Bxd7 {[%clk 0:01:01]}  Qxd7 {[%clk 0:02:31]} 20. dxc5 {[%clk 0:01:01]}  Nf5 {[%clk 0:02:30]} 21. Nd4 {[%clk 0:01:00]}  Nh4 {[%clk 0:02:24]} 22. b4 {[%clk 0:00:50]}  f6 {[%clk 0:02:22]} 23. exf6 {[%clk 0:00:42]}  Bxf6 {[%clk 0:02:22]} 24. O-O-O {[%clk 0:00:39]}  Qa4 {[%clk 0:02:20]} 25. Kb2 {[%clk 0:00:37]}  b6 {[%clk 0:02:20]} 26. Nxe6 {[%clk 0:00:34]}  bxc5 {[%clk 0:02:18]} 27. Qxd5 {[%clk 0:00:19]}  cxb4 {[%clk 0:02:14]} 28. Nc5+ {[%clk 0:00:19]}  Kg7 {[%clk 0:02:12]} 29. Nxa4 {[%clk 0:00:20]}  bxc3+ {[%clk 0:02:12]} 30. Nxc3 {[%clk 0:00:19]}  Rxc3 {[%clk 0:02:11]} 31. Bd4 {[%clk 0:00:16]}  Rc7 {[%clk 0:02:09]} 32. Bxf6+ {[%clk 0:00:16]}  Rxf6 {[%clk 0:02:10]} 33. Qe5 {[%clk 0:00:16]}  Rb7+ {[%clk 0:02:10]} 34. Ka2 {[%clk 0:00:15]}  Nf5 {[%clk 0:02:10]} 35. Rc1 {[%clk 0:00:12]}  Re7 {[%clk 0:02:10]} 36. Rc7 {[%clk 0:00:12]}  Kf7 {[%clk 0:02:09]} 37. Rxe7+ {[%clk 0:00:11]}  Nxe7 {[%clk 0:02:10]} 38. Re1 {[%clk 0:00:11]}  Nf5 {[%clk 0:02:11]} 39. Qe8+ {[%clk 0:00:11]}  Kg7 {[%clk 0:02:11]} 40. Re6 {[%clk 0:00:10]}  Rf7 {[%clk 0:02:12]} 41. Rxa6 {[%clk 0:00:07]}  Nh6 {[%clk 0:02:12]} 42. Qe5+ {[%clk 0:00:08]}  Kh7 {[%clk 0:02:12]} 43. Rc6 {[%clk 0:00:07]}  Rf8 {[%clk 0:02:10]} 44. Rc7+ {[%clk 0:00:07]}  Nf7 {[%clk 0:02:10]} 45. Qf6 {[%clk 0:00:07]}  Kg8 {[%clk 0:02:10]} 46. Qxg6+ {[%clk 0:00:07]}  Kh8 {[%clk 0:02:11]} 47. Rxf7 {[%clk 0:00:08]}  Ra8 {[%clk 0:02:12]} 48. Qh7# {[%clk 0:00:08]} 1-0


[Site "https://www.chess.com"]

[Event "Titled Tuesday Blitz June 13 Early 2023"]
[White "Goldin, Roman"]
[Black "Sowul, Bartosz"]
[WhiteFideId "2803860"]
[BlackFideId "1137590"]
[WhiteElo "2312"]
[BlackElo "2188"]
[Result "0-1"]
[Round "5"]
[TimeControl "180+2"]
[Date "2023.06.13"]
[WhiteClock "0:00:00"]
[BlackClock "0:00:09"]
[Board "126"]

1. Nf3 {[%clk 0:02:59]}  c5 {[%clk 0:02:56]} 2. e4 {[%clk 0:02:58]}  d6 {[%clk 0:02:54]} 3. Bc4 {[%clk 0:02:58]}  Nf6 {[%clk 0:02:48]} 4. e5 {[%clk 0:02:58]}  dxe5 {[%clk 0:02:42]} 5. Nxe5 {[%clk 0:02:58]}  e6 {[%clk 0:02:43]} 6. Qe2 {[%clk 0:02:57]}  a6 {[%clk 0:02:41]} 7. a4 {[%clk 0:02:56]}  Qc7 {[%clk 0:02:36]} 8. d3 {[%clk 0:02:52]}  Bd6 {[%clk 0:02:36]} 9. f4 {[%clk 0:02:51]}  Nc6 {[%clk 0:02:33]} 10. Nxc6 {[%clk 0:02:50]}  Qxc6 {[%clk 0:02:33]} 11. Nc3 {[%clk 0:01:56]}  O-O {[%clk 0:02:30]} 12. O-O {[%clk 0:01:54]}  b6 {[%clk 0:02:19]} 13. Ne4 {[%clk 0:01:45]}  Be7 {[%clk 0:01:57]} 14. Bd2 {[%clk 0:01:37]}  Bb7 {[%clk 0:01:56]} 15. Rae1 {[%clk 0:01:22]}  b5 {[%clk 0:01:52]} 16. Ba2 {[%clk 0:01:17]}  Rad8 {[%clk 0:01:38]} 17. Ng5 {[%clk 0:00:56]}  c4 {[%clk 0:01:31]} 18. dxc4 {[%clk 0:00:42]}  bxc4 {[%clk 0:01:24]} 19. Bc3 {[%clk 0:00:32]}  h6 {[%clk 0:01:11]} 20. Nxe6 {[%clk 0:00:19]}  fxe6 {[%clk 0:01:06]} 21. Qxe6+ {[%clk 0:00:19]}  Qxe6 {[%clk 0:01:02]} 22. Rxe6 {[%clk 0:00:18]}  Bc5+ {[%clk 0:01:02]} 23. Kh1 {[%clk 0:00:17]}  Bd5 {[%clk 0:00:53]} 24. Rxa6 {[%clk 0:00:11]}  Ng4 {[%clk 0:00:52]} 25. h3 {[%clk 0:00:06]}  Ne3 {[%clk 0:00:47]} 26. Rg6 {[%clk 0:00:05]}  Rf7 {[%clk 0:00:37]} 27. Rf2 {[%clk 0:00:03]}  Nd1 {[%clk 0:00:27]} 28. Rd2 {[%clk 0:00:03]}  Nxc3 {[%clk 0:00:22]} 29. bxc3 {[%clk 0:00:03]}  Rxf4 {[%clk 0:00:17]} 30. Rxd5 {[%clk 0:00:03]}  Rxd5 {[%clk 0:00:17]} 31. a5 {[%clk 0:00:03]}  Rf1+ {[%clk 0:00:14]} 32. Kh2 {[%clk 0:00:03]}  Bd6+ {[%clk 0:00:15]} 33. Rxd6 {[%clk 0:00:01]}  Rxd6 {[%clk 0:00:14]} 34. Bxc4+ {[%clk 0:00:02]}  Kh8 {[%clk 0:00:15]} 35. Bxf1 {[%clk 0:00:02]}  Rd7 {[%clk 0:00:14]} 36. Bd3 {[%clk 0:00:03]}  Rc7 {[%clk 0:00:12]} 37. a6 {[%clk 0:00:03]}  Rxc3 {[%clk 0:00:12]} 38. Kg3 {[%clk 0:00:04]}  Kg8 {[%clk 0:00:10]} 39. Kf4 {[%clk 0:00:04]}  Kf8 {[%clk 0:00:11]} 40. Ke5 {[%clk 0:00:05]}  Ke7 {[%clk 0:00:11]} 41. Kd5 {[%clk 0:00:05]}  Kd7 {[%clk 0:00:11]} 42. Bb5+ {[%clk 0:00:05]}  Kc7 {[%clk 0:00:11]} 43. Kd4 {[%clk 0:00:05]}  Ra3 {[%clk 0:00:11]} 44. Bd3 {[%clk 0:00:05]}  Kb6 {[%clk 0:00:11]} 45. Ke5 {[%clk 0:00:05]}  Ra5+ {[%clk 0:00:11]} 46. Ke6 {[%clk 0:00:06]}  Rg5 {[%clk 0:00:11]} 47. g4 {[%clk 0:00:06]}  h5 {[%clk 0:00:11]} 48. Bf5 {[%clk 0:00:06]}  Kxa6 {[%clk 0:00:10]} 49. h4 {[%clk 0:00:00]}  Rxg4 {[%clk 0:00:09]} 0-1


[Site "https://www.chess.com"]

[Event "Titled Tuesday Blitz June 13 Early 2023"]
[White "Bashkansky, Ethan"]
[Black "brm72"]
[WhiteFideId "2071533"]
[WhiteElo "2319"]
[BlackElo "2532"]
[Result "1-0"]
[Round "5"]
[TimeControl "180+2"]
[Date "2023.06.13"]
[WhiteClock "0:00:08"]
[BlackClock "0:00:08"]
[Board "127"]

1. d4 {[%clk 0:03:00]}  Nf6 {[%clk 0:03:00]} 2. c4 {[%clk 0:03:00]}  g6 {[%clk 0:03:00]} 3. Nc3 {[%clk 0:03:00]}  d5 {[%clk 0:03:00]} 4. cxd5 {[%clk 0:03:00]}  Nxd5 {[%clk 0:03:01]} 5. Bd2 {[%clk 0:03:00]}  Nb6 {[%clk 0:02:58]} 6. Nf3 {[%clk 0:02:57]}  Nc6 {[%clk 0:02:50]} 7. e3 {[%clk 0:02:55]}  Bg7 {[%clk 0:02:49]} 8. Bb5 {[%clk 0:02:50]}  O-O {[%clk 0:02:49]} 9. O-O {[%clk 0:02:49]}  Bd7 {[%clk 0:02:12]} 10. Rc1 {[%clk 0:02:36]}  a6 {[%clk 0:02:12]} 11. Be2 {[%clk 0:02:30]}  Re8 {[%clk 0:02:04]} 12. b3 {[%clk 0:02:11]}  Rc8 {[%clk 0:01:28]} 13. h3 {[%clk 0:02:09]}  h6 {[%clk 0:01:13]} 14. Re1 {[%clk 0:01:46]}  Kh7 {[%clk 0:01:12]} 15. Qc2 {[%clk 0:01:43]}  e5 {[%clk 0:01:12]} 16. dxe5 {[%clk 0:01:36]}  Nxe5 {[%clk 0:01:11]} 17. Nxe5 {[%clk 0:01:35]}  Bxe5 {[%clk 0:01:08]} 18. Bf3 {[%clk 0:01:30]}  c6 {[%clk 0:01:07]} 19. Ne4 {[%clk 0:01:25]}  Bf5 {[%clk 0:01:05]} 20. Red1 {[%clk 0:01:17]}  Qe7 {[%clk 0:01:04]} 21. Qc5 {[%clk 0:01:02]}  Nd5 {[%clk 0:01:02]} 22. Qxe7 {[%clk 0:00:35]}  Rxe7 {[%clk 0:01:03]} 23. Nc3 {[%clk 0:00:34]}  Nf6 {[%clk 0:00:57]} 24. Na4 {[%clk 0:00:30]}  Rd8 {[%clk 0:00:55]} 25. Bc3 {[%clk 0:00:29]}  Rxd1+ {[%clk 0:00:41]} 26. Rxd1 {[%clk 0:00:27]}  Bxc3 {[%clk 0:00:37]} 27. Nxc3 {[%clk 0:00:26]}  Kg7 {[%clk 0:00:31]} 28. Na4 {[%clk 0:00:18]}  Nd7 {[%clk 0:00:26]} 29. Rd2 {[%clk 0:00:16]}  Ne5 {[%clk 0:00:26]} 30. Be2 {[%clk 0:00:14]}  Bb1 {[%clk 0:00:24]} 31. a3 {[%clk 0:00:14]}  Rd7 {[%clk 0:00:20]} 32. Rxd7 {[%clk 0:00:12]}  Nxd7 {[%clk 0:00:21]} 33. b4 {[%clk 0:00:13]}  Kf6 {[%clk 0:00:19]} 34. Kf1 {[%clk 0:00:13]}  Bc2 {[%clk 0:00:19]} 35. Nc3 {[%clk 0:00:11]}  Ne5 {[%clk 0:00:18]} 36. Ke1 {[%clk 0:00:11]}  Bd3 {[%clk 0:00:18]} 37. Kd2 {[%clk 0:00:10]}  Bxe2 {[%clk 0:00:18]} 38. Kxe2 {[%clk 0:00:11]}  Nc4 {[%clk 0:00:18]} 39. a4 {[%clk 0:00:08]}  Ke5 {[%clk 0:00:18]} 40. f4+ {[%clk 0:00:06]}  Kd6 {[%clk 0:00:17]} 41. Kd3 {[%clk 0:00:06]}  Nb2+ {[%clk 0:00:15]} 42. Kc2 {[%clk 0:00:07]}  Nc4 {[%clk 0:00:15]} 43. Kd3 {[%clk 0:00:07]}  b5 {[%clk 0:00:14]} 44. a5 {[%clk 0:00:03]}  f5 {[%clk 0:00:08]} 45. g4 {[%clk 0:00:03]}  c5 {[%clk 0:00:08]} 46. bxc5+ {[%clk 0:00:03]}  Kxc5 {[%clk 0:00:09]} 47. gxf5 {[%clk 0:00:03]}  gxf5 {[%clk 0:00:10]} 48. e4 {[%clk 0:00:04]}  fxe4+ {[%clk 0:00:06]} 49. Kxe4 {[%clk 0:00:05]}  Nxa5 {[%clk 0:00:06]} 50. f5 {[%clk 0:00:05]}  Kd6 {[%clk 0:00:06]} 51. Nd5 {[%clk 0:00:05]}  Nc6 {[%clk 0:00:06]} 52. f6 {[%clk 0:00:05]}  Ke6 {[%clk 0:00:06]} 53. Nc7+ {[%clk 0:00:02]}  Kxf6 {[%clk 0:00:06]} 54. Nxa6 {[%clk 0:00:03]}  Kg5 {[%clk 0:00:05]} 55. Kf3 {[%clk 0:00:03]}  Kh4 {[%clk 0:00:05]} 56. Kg2 {[%clk 0:00:03]}  b4 {[%clk 0:00:06]} 57. Nc5 {[%clk 0:00:04]}  Nd4 {[%clk 0:00:05]} 58. Nd3 {[%clk 0:00:02]}  b3 {[%clk 0:00:05]} 59. Nb2 {[%clk 0:00:03]}  Kg5 {[%clk 0:00:04]} 60. Kg3 {[%clk 0:00:03]}  h5 {[%clk 0:00:04]} 61. Kf2 {[%clk 0:00:02]}  Kf4 {[%clk 0:00:04]} 62. Kg2 {[%clk 0:00:03]}  Ke3 {[%clk 0:00:05]} 63. Kg3 {[%clk 0:00:03]}  Kd2 {[%clk 0:00:04]} 64. Kh4 {[%clk 0:00:04]}  Kc3 {[%clk 0:00:05]} 65. Na4+ {[%clk 0:00:04]}  Kb4 {[%clk 0:00:05]} 66. Nb2 {[%clk 0:00:05]}  Ka3 {[%clk 0:00:02]} 67. Nc4+ {[%clk 0:00:05]}  Kb4 {[%clk 0:00:02]} 68. Nb2 {[%clk 0:00:05]}  Ne6 {[%clk 0:00:02]} 69. Kxh5 {[%clk 0:00:05]}  Nf4+ {[%clk 0:00:02]} 70. Kg4 {[%clk 0:00:05]}  Nd5 {[%clk 0:00:03]} 71. h4 {[%clk 0:00:06]}  Nb6 {[%clk 0:00:03]} 72. h5 {[%clk 0:00:06]}  Kc3 {[%clk 0:00:04]} 73. Nd1+ {[%clk 0:00:06]}  Kc2 {[%clk 0:00:04]} 74. Ne3+ {[%clk 0:00:06]}  Kd3 {[%clk 0:00:05]} 75. Nd1 {[%clk 0:00:05]}  Na4 {[%clk 0:00:05]} 76. h6 {[%clk 0:00:05]}  Kd2 {[%clk 0:00:06]} 77. h7 {[%clk 0:00:05]}  Kxd1 {[%clk 0:00:07]} 78. h8=Q {[%clk 0:00:05]}  b2 {[%clk 0:00:08]} 79. Qd4+ {[%clk 0:00:05]}  Kc2 {[%clk 0:00:08]} 80. Qxa4+ {[%clk 0:00:05]}  Kc1 {[%clk 0:00:09]} 81. Qc4+ {[%clk 0:00:06]}  Kd2 {[%clk 0:00:09]} 82. Qb3 {[%clk 0:00:07]}  Kc1 {[%clk 0:00:09]} 83. Qc3+ {[%clk 0:00:07]}  Kb1 {[%clk 0:00:08]} 84. Kf3 {[%clk 0:00:08]} 1-0


[Site "https://www.chess.com"]

[Event "Titled Tuesday Blitz June 13 Early 2023"]
[White "Devaev, Alexander"]
[Black "Mayaud, Raphael"]
[WhiteFideId "4169395"]
[BlackFideId "627151"]
[WhiteElo "2172"]
[BlackElo "2191"]
[Result "1-0"]
[Round "5"]
[TimeControl "180+2"]
[Date "2023.06.13"]
[WhiteClock "0:00:39"]
[BlackClock "0:00:00"]
[Board "128"]

1. Nf3 {[%clk 0:01:57]}  d5 {[%clk 0:02:54]} 2. c4 {[%clk 0:01:57]}  c6 {[%clk 0:02:54]} 3. e3 {[%clk 0:01:56]}  Nf6 {[%clk 0:02:54]} 4. b3 {[%clk 0:01:57]}  g6 {[%clk 0:02:52]} 5. Bb2 {[%clk 0:01:57]}  Bg7 {[%clk 0:02:53]} 6. d4 {[%clk 0:01:53]}  O-O {[%clk 0:02:53]} 7. Nbd2 {[%clk 0:01:54]}  b6 {[%clk 0:02:52]} 8. Bd3 {[%clk 0:01:54]}  Bb7 {[%clk 0:02:53]} 9. O-O {[%clk 0:01:54]}  Nbd7 {[%clk 0:02:51]} 10. Qe2 {[%clk 0:01:54]}  c5 {[%clk 0:02:42]} 11. Rfd1 {[%clk 0:01:35]}  e6 {[%clk 0:02:38]} 12. Rac1 {[%clk 0:01:34]}  Qe7 {[%clk 0:02:37]} 13. Ba3 {[%clk 0:01:29]}  Rac8 {[%clk 0:02:36]} 14. h3 {[%clk 0:01:23]}  Rfd8 {[%clk 0:02:36]} 15. cxd5 {[%clk 0:01:16]}  exd5 {[%clk 0:02:33]} 16. Ba6 {[%clk 0:01:17]}  Bxa6 {[%clk 0:02:19]} 17. Qxa6 {[%clk 0:01:17]}  Rc7 {[%clk 0:02:16]} 18. Nb1 {[%clk 0:00:53]}  Ne4 {[%clk 0:02:03]} 19. Nc3 {[%clk 0:00:53]}  Nxc3 {[%clk 0:02:02]} 20. Rxc3 {[%clk 0:00:54]}  Rdc8 {[%clk 0:01:58]} 21. Rdc1 {[%clk 0:00:53]}  Qd8 {[%clk 0:01:41]} 22. R3c2 {[%clk 0:00:44]}  cxd4 {[%clk 0:00:50]} 23. Qxc8 {[%clk 0:00:39]}  Rxc8 {[%clk 0:00:00]} 24. Rxc8 {[%clk 0:00:39]} 1-0


[Site "https://www.chess.com"]

[Event "Titled Tuesday Blitz June 13 Early 2023"]
[White "Zaksaite, Salomeja"]
[Black "Manukian, Artak"]
[WhiteFideId "12801496"]
[BlackFideId "13301373"]
[WhiteElo "2059"]
[BlackElo "2130"]
[Result "0-1"]
[Round "5"]
[TimeControl "180+2"]
[Date "2023.06.13"]
[WhiteClock "0:00:00"]
[BlackClock "0:01:39"]
[Board "129"]

1. d4 {[%clk 0:02:58]}  Nf6 {[%clk 0:02:53]} 2. e3 {[%clk 0:02:56]}  d5 {[%clk 0:02:53]} 3. Nf3 {[%clk 0:02:56]}  Bg4 {[%clk 0:02:50]} 4. b3 {[%clk 0:02:54]}  e6 {[%clk 0:02:48]} 5. Bb2 {[%clk 0:02:54]}  Nbd7 {[%clk 0:02:46]} 6. h3 {[%clk 0:02:54]}  Bh5 {[%clk 0:02:45]} 7. Be2 {[%clk 0:02:41]}  c5 {[%clk 0:02:44]} 8. Ne5 {[%clk 0:02:32]}  Bxe2 {[%clk 0:02:40]} 9. Qxe2 {[%clk 0:02:32]}  Nxe5 {[%clk 0:02:41]} 10. dxe5 {[%clk 0:02:32]}  Nd7 {[%clk 0:02:40]} 11. c4 {[%clk 0:02:26]}  dxc4 {[%clk 0:02:31]} 12. Qxc4 {[%clk 0:02:24]}  a6 {[%clk 0:02:27]} 13. Nd2 {[%clk 0:02:23]}  b5 {[%clk 0:02:26]} 14. Qe2 {[%clk 0:02:22]}  Qc7 {[%clk 0:02:21]} 15. f4 {[%clk 0:02:14]}  g6 {[%clk 0:02:22]} 16. Ne4 {[%clk 0:02:13]}  Be7 {[%clk 0:02:22]} 17. Rd1 {[%clk 0:02:10]}  O-O {[%clk 0:02:20]} 18. h4 {[%clk 0:01:58]}  Rfd8 {[%clk 0:02:17]} 19. h5 {[%clk 0:01:57]}  Nf8 {[%clk 0:02:16]} 20. hxg6 {[%clk 0:01:43]}  fxg6 {[%clk 0:02:16]} 21. O-O {[%clk 0:01:08]}  Rxd1 {[%clk 0:02:13]} 22. Rxd1 {[%clk 0:01:07]}  Rd8 {[%clk 0:02:14]} 23. Rd6 {[%clk 0:00:21]}  Bxd6 {[%clk 0:01:57]} 24. exd6 {[%clk 0:00:21]}  Qc6 {[%clk 0:01:45]} 25. Nf6+ {[%clk 0:00:04]}  Kf7 {[%clk 0:01:44]} 26. Ng4 {[%clk 0:00:00]}  Qxd6 {[%clk 0:01:39]} 0-1


[Site "https://www.chess.com"]

[Event "Titled Tuesday Blitz June 13 Early 2023"]
[White "Afanasieva, Alexandra"]
[Black "Brunner, Nicolas"]
[WhiteFideId "34126926"]
[BlackFideId "620246"]
[WhiteElo "1736"]
[BlackElo "2319"]
[Result "0-1"]
[Round "5"]
[TimeControl "180+2"]
[Date "2023.06.13"]
[WhiteClock "0:00:03"]
[BlackClock "0:01:19"]
[Board "130"]

1. e4 {[%clk 0:02:59]}  e5 {[%clk 0:02:59]} 2. Nf3 {[%clk 0:03:00]}  Nf6 {[%clk 0:03:00]} 3. Nxe5 {[%clk 0:03:00]}  d6 {[%clk 0:03:00]} 4. Nf3 {[%clk 0:03:00]}  Nxe4 {[%clk 0:03:00]} 5. d4 {[%clk 0:03:01]}  d5 {[%clk 0:03:01]} 6. Bd3 {[%clk 0:03:02]}  Bf5 {[%clk 0:03:01]} 7. O-O {[%clk 0:03:01]}  Be7 {[%clk 0:03:01]} 8. c4 {[%clk 0:02:59]}  dxc4 {[%clk 0:03:01]} 9. Bxc4 {[%clk 0:02:59]}  O-O {[%clk 0:03:01]} 10. Nc3 {[%clk 0:02:58]}  Nd6 {[%clk 0:03:01]} 11. Bd3 {[%clk 0:02:58]}  Nd7 {[%clk 0:02:54]} 12. Bf4 {[%clk 0:02:56]}  Bxd3 {[%clk 0:02:48]} 13. Qxd3 {[%clk 0:02:57]}  c6 {[%clk 0:02:49]} 14. Rfe1 {[%clk 0:02:47]}  Nf6 {[%clk 0:02:46]} 15. Re2 {[%clk 0:02:36]}  Qd7 {[%clk 0:02:44]} 16. Rae1 {[%clk 0:02:34]}  Rfe8 {[%clk 0:02:43]} 17. Ne5 {[%clk 0:02:31]}  Qf5 {[%clk 0:02:42]} 18. Bg3 {[%clk 0:01:54]}  Bf8 {[%clk 0:02:38]} 19. Re3 {[%clk 0:01:13]}  h5 {[%clk 0:02:32]} 20. h3 {[%clk 0:00:54]}  Qxd3 {[%clk 0:02:31]} 21. Nxd3 {[%clk 0:00:42]}  Rxe3 {[%clk 0:02:13]} 22. Rxe3 {[%clk 0:00:43]}  Nf5 {[%clk 0:02:12]} 23. Re1 {[%clk 0:00:29]}  Nxd4 {[%clk 0:02:12]} 24. Be5 {[%clk 0:00:29]}  Ne6 {[%clk 0:02:00]} 25. Bxf6 {[%clk 0:00:20]}  gxf6 {[%clk 0:02:00]} 26. Ne4 {[%clk 0:00:21]}  Kg7 {[%clk 0:02:00]} 27. Ng3 {[%clk 0:00:21]}  Kg6 {[%clk 0:01:58]} 28. f4 {[%clk 0:00:22]}  Nc5 {[%clk 0:01:52]} 29. f5+ {[%clk 0:00:17]}  Kg5 {[%clk 0:01:45]} 30. Nxc5 {[%clk 0:00:15]}  Bxc5+ {[%clk 0:01:44]} 31. Kf1 {[%clk 0:00:12]}  Bd4 {[%clk 0:01:43]} 32. Re4 {[%clk 0:00:08]}  Rd8 {[%clk 0:01:35]} 33. h4+ {[%clk 0:00:04]}  Kh6 {[%clk 0:01:35]} 34. Ne2 {[%clk 0:00:04]}  Bxb2 {[%clk 0:01:33]} 35. Ng3 {[%clk 0:00:02]}  Be5 {[%clk 0:01:31]} 36. Ne2 {[%clk 0:00:02]}  Rd2 {[%clk 0:01:29]} 37. Kf2 {[%clk 0:00:03]}  Rxa2 {[%clk 0:01:29]} 38. Kf3 {[%clk 0:00:03]}  a5 {[%clk 0:01:27]} 39. g4 {[%clk 0:00:02]}  hxg4+ {[%clk 0:01:27]} 40. Kxg4 {[%clk 0:00:03]}  a4 {[%clk 0:01:27]} 41. Nd4 {[%clk 0:00:01]}  a3 {[%clk 0:01:22]} 42. Ne6 {[%clk 0:00:02]}  fxe6 {[%clk 0:01:19]} 43. fxe6 {[%clk 0:00:03]} 0-1


[Site "https://www.chess.com"]

[Event "Titled Tuesday Blitz June 13 Early 2023"]
[White "Levitan, Caleb Levi"]
[Black "Horak, Martin"]
[WhiteFideId "14332620"]
[BlackFideId "367095"]
[WhiteElo "1963"]
[BlackElo "2091"]
[Result "1-0"]
[Round "5"]
[TimeControl "180+2"]
[Date "2023.06.13"]
[WhiteClock "0:00:07"]
[BlackClock "0:00:10"]
[Board "131"]

1. e4 {[%clk 0:03:00]}  e5 {[%clk 0:02:57]} 2. Nf3 {[%clk 0:03:00]}  Nc6 {[%clk 0:02:58]} 3. Bb5 {[%clk 0:02:59]}  a6 {[%clk 0:02:57]} 4. Ba4 {[%clk 0:02:59]}  Nf6 {[%clk 0:02:56]} 5. Qe2 {[%clk 0:02:59]}  b5 {[%clk 0:02:51]} 6. Bb3 {[%clk 0:02:58]}  Be7 {[%clk 0:02:51]} 7. c3 {[%clk 0:02:57]}  d5 {[%clk 0:02:41]} 8. d3 {[%clk 0:02:42]}  O-O {[%clk 0:02:31]} 9. O-O {[%clk 0:02:39]}  Bg4 {[%clk 0:02:15]} 10. h3 {[%clk 0:02:33]}  Bh5 {[%clk 0:02:09]} 11. Nbd2 {[%clk 0:02:26]}  d4 {[%clk 0:01:59]} 12. Rd1 {[%clk 0:02:16]}  Re8 {[%clk 0:01:41]} 13. Nf1 {[%clk 0:02:13]}  h6 {[%clk 0:01:35]} 14. Ng3 {[%clk 0:02:11]}  Bg6 {[%clk 0:01:34]} 15. Nh4 {[%clk 0:02:05]}  Bh7 {[%clk 0:01:27]} 16. Nhf5 {[%clk 0:02:01]}  Bf8 {[%clk 0:01:23]} 17. cxd4 {[%clk 0:01:38]}  Nxd4 {[%clk 0:01:20]} 18. Nxd4 {[%clk 0:01:37]}  Qxd4 {[%clk 0:01:07]} 19. Be3 {[%clk 0:01:35]}  Qb4 {[%clk 0:00:53]} 20. Rac1 {[%clk 0:01:33]}  Rac8 {[%clk 0:00:50]} 21. Nh5 {[%clk 0:01:11]}  Nxh5 {[%clk 0:00:32]} 22. Qxh5 {[%clk 0:01:08]}  Qe7 {[%clk 0:00:31]} 23. Rc6 {[%clk 0:00:43]}  Red8 {[%clk 0:00:30]} 24. Rxa6 {[%clk 0:00:31]}  c5 {[%clk 0:00:30]} 25. Bd5 {[%clk 0:00:22]}  Rd7 {[%clk 0:00:21]} 26. Rc1 {[%clk 0:00:17]}  Kh8 {[%clk 0:00:21]} 27. Rc6 {[%clk 0:00:13]}  Rxc6 {[%clk 0:00:19]} 28. Bxc6 {[%clk 0:00:13]}  Bg6 {[%clk 0:00:20]} 29. Qe2 {[%clk 0:00:11]}  Ra7 {[%clk 0:00:18]} 30. Bxc5 {[%clk 0:00:10]}  Qc7 {[%clk 0:00:16]} 31. Bxf8 {[%clk 0:00:10]}  Rxa2 {[%clk 0:00:15]} 32. Qd2 {[%clk 0:00:08]}  f6 {[%clk 0:00:11]} 33. Bd5 {[%clk 0:00:08]}  Qa5 {[%clk 0:00:11]} 34. Qxa5 {[%clk 0:00:07]}  Rxa5 {[%clk 0:00:12]} 35. Rc8 {[%clk 0:00:06]}  Bh5 {[%clk 0:00:10]} 36. Bb4+ {[%clk 0:00:05]}  Kh7 {[%clk 0:00:11]} 37. Bxa5 {[%clk 0:00:05]}  Kg6 {[%clk 0:00:11]} 38. Be6 {[%clk 0:00:05]}  Kg5 {[%clk 0:00:12]} 39. g4 {[%clk 0:00:05]}  Bg6 {[%clk 0:00:10]} 40. Bd2+ {[%clk 0:00:06]}  Kh4 {[%clk 0:00:10]} 41. Kg2 {[%clk 0:00:06]}  b4 {[%clk 0:00:10]} 42. f4 {[%clk 0:00:07]}  b3 {[%clk 0:00:10]} 43. Be1# {[%clk 0:00:07]} 1-0


[Site "https://www.chess.com"]